{"text_format":"3","workbook":"xlsx","n_sheets":2,"sheets":["Exemple indemnisation entrepris","Feuil1"],"not_rendered":{"images":1,"defined_names":1},"read":"whole","date_system":"1900"}

{"sheet":"Exemple indemnisation entrepris","index":0,"n_rows":57,"n_cols":8,"rows_kept":57,"merged":[[3,1,3,7],[4,1,4,7],[5,1,5,7],[6,2,6,5],[8,3,8,7],[10,1,10,7],[11,1,11,2],[12,1,12,2],[13,1,13,2],[14,1,14,2],[15,1,15,2],[16,1,16,2],[17,1,17,2],[18,1,18,2],[19,1,19,2],[22,3,22,7],[24,1,24,7],[25,1,25,2],[26,1,26,2],[27,1,27,2],[28,1,28,2],[29,1,29,2],[30,1,30,2],[31,1,31,2],[33,1,33,2],[35,1,35,2],[36,1,38,7],[41,1,41,7],[43,1,43,5],[52,1,52,4],[56,1,56,3]]}
[null,"Service des affaires culturelles"]
[null,"Département de la formation, de la jeunesse et de la culture"]
[]
[null,"Indemnisation des pertes pour entreprises culturelles"]
[null,"Eléments financiers pour le calcul de la perte encourue"]
[null,"COVID-19 - Etat de Vaud"]
[]
[]
[{"$nulls":3},"Périodes concernées"]
[]
[null,"Frais encourus"]
[null,"Loyers",null,0,0,0,0,0]
[null,"Frais non remboursables (hôtel, frais de voyage, restauration) *",null,0,0,0,0,0]
[null,"Cachets payés ou à payer *",null,0,0,0,0,0]
[null,"Communication ",null,0,0,0,0,0]
[null,"Charges salariales",null,0,0,0,0,0]
[null,"Autres frais (en particulier achats), productions spécifiques pour l'occasion *",null,0,0,0,0,0]
[null,"Revenus manquants découlant d'une ouverture réduite des manifestations ou de l'entreprise culturelle, ou de la réalisation réduite des projets culturels (merci de compléter le tableau ci-dessous)",null,0,0,0,0,0]
[null,"Surcoûts découlant des mesures sanitaires mises en place selon les recommandations de la Confédération dans le cadre de l'exploitation de lieux culturels",null,0,0,0,0,0]
[null,"Total des frais encourus",null,{"$f":"SUM(D12:D19)","v":0},{"$f":"SUM(E12:E19)","v":0},{"$f":"SUM(F12:F19)","v":0},{"$f":"SUM(G12:G19)","v":0},0]
[null,"* merci de joindre une liste détaillée"]
[]
[{"$nulls":3},"Périodes concernées"]
[{"$nulls":3},{"$f":"REPT(D10,1)","v":""},{"$f":"REPT(E10,1)","v":""},{"$f":"REPT(F10,1)","v":""},{"$f":"REPT(G10,1)","v":""},{"$f":"REPT(H10,1)","v":""}]
[null,"Indemnités / revenus"]
[null,"Indemnité d'assurance privée",null,0,0,0,0,0]
[null,"Indemnités RHT",null,0,0,0,0,0]
[null,"Apport de tiers (sponsoring)",null,0,0,0,0,0]
[null,"Financement public de la culture (subventions communales, cantonales, Loterie Romande) *",null,0,0,0,0,0]
[null,"Revenus d'activités ordinaires",null,0,0,0,0,0]
[null,"Autres revenus",null,0,0,0,0,0]
[null,"Total des indemnités / revenus",null,{"$f":"SUM(D26:D31)","v":0},{"$f":"SUM(E26:E31)","v":0},{"$f":"SUM(F26:F31)","v":0},{"$f":"SUM(G26:G31)","v":0},0]
[null,"* merci de joindre une liste détaillée"]
[null,"Montant de la perte annoncée",null,{"$f":"D20-D32","v":0},{"$f":"E20-E32","v":0},{"$f":"F20-F32","v":0},{"$f":"G20-G32","v":0},0]
[]
[null,"Remarques / questions :"]
[]
[]
[]
[]
[]
[null,"Calculation des revenus manquants découlant d'une ouverture réduite des manifestations\nou de l'entreprise culturelle, ou de la réalisation réduite des projets culturels"]
[]
[null,"Calculation du revenu moyen d'un siège avant COVID"]
[null,"Années","Places vendues","Nbre de représentations / séances","Moyenne sièges occupés","Revenus\nBilleterie"]
[null,2017,null,null,{"$f":"IF(OR(C46=0,D46=0),0,C46/D46)","v":0}]
[null,2018,null,null,{"$f":"IF(OR(C47=0,D47=0),0,C47/D47)","v":0}]
[null,2019,null,null,{"$f":"IF(OR(C48=0,D48=0),0,C48/D48)","v":0}]
[null,"Moyenne",{"$f":"SUM(C46:C48)/3","v":0},0,0,0]
[]
[null,"Revenu moyen par billet et par représentation",null,null,{"$f":"IF(F49=0,0,F49/E49/D49)","v":0}]
[]
[null,"Indemnisation sièges non vendables"]
[null,"Période\nconcernée","Places vendues","Nbre  de représentations / séances","Sièges non vendables"]
[{"$nulls":4},{"$f":"SUM(E49*D55)-C55","v":0}]
[]
[null,"Montant indemnisable par siège (à reporter dans les frais encourus, pour la période concernée correspondante)",null,null,{"$f":"SUM(E55*E51)","v":0}]

{"sheet":"Feuil1","index":1,"n_rows":0,"n_cols":0,"rows_kept":0}